[Event "*** Titled Tuesday 3|2 Blitz"]
[Site "Chess.com"]
[Date "2015.07.07"]
[Round "2"]
[White "MasterLeif"]
[Black "AungTZ"]
[Result "1/2-1/2"]
[WhiteElo "2288"]
[BlackElo "2139"]
[TimeControl "180+2"]
[EndTime "11:22:22 PDT"]
[Termination "Game drawn - insufficient material"]

1. e4 {[%clk 0:02:18.6]} 1... c5 {[%clk 0:02:59.9]} 2. Nf3 {[%clk 0:02:19.6]}
2... Nc6 {[%clk 0:03:00.4]} 3. d4 {[%clk 0:02:21.3]} 3... cxd4 {[%clk
0:03:01.9]} 4. Nxd4 {[%clk 0:02:23.2]} 4... Nf6 {[%clk 0:03:03.4]} 5. Nc3 {[%clk
0:02:14.5]} 5... d6 {[%clk 0:03:04.4]} 6. Bg5 {[%clk 0:02:14.9]} 6... e6 {[%clk
0:03:05.1]} 7. Qd2 {[%clk 0:02:15.8]} 7... a6 {[%clk 0:03:06.7]} 8. O-O-O {[%clk
0:02:15.9]} 8... h6 {[%clk 0:03:08.2]} 9. Bf4 {[%clk 0:02:05.6]} 9... Bd7 {[%clk
0:03:06.4]} 10. Nxc6 {[%clk 0:02:04.3]} 10... Bxc6 {[%clk 0:03:07.3]} 11. f3
{[%clk 0:02:05.5]} 11... d5 {[%clk 0:03:07.4]} 12. Qe1 {[%clk 0:02:01.6]} 12...
Bb4 {[%clk 0:03:04.4]} 13. exd5 {[%clk 0:02:00.2]} 13... Nxd5 {[%clk 0:02:53.3]}
14. Bd2 {[%clk 0:02:00.6]} 14... Nxc3 {[%clk 0:02:28.7]} 15. Bxc3 {[%clk
0:02:02.5]} 15... Qg5+ {[%clk 0:02:28.8]} 16. Kb1 {[%clk 0:02:01.9]} 16... Bxc3
{[%clk 0:02:25.4]} 17. Qxc3 {[%clk 0:02:03.8]} 17... O-O {[%clk 0:02:26.4]} 18.
Bd3 {[%clk 0:01:59.5]} 18... Rac8 {[%clk 0:02:20.1]} 19. h4 {[%clk 0:01:57]}
19... Qg3 {[%clk 0:02:02.4]} 20. Qe1 {[%clk 0:01:56.2]} 20... Qf4 {[%clk
0:01:48.2]} 21. Qf2 {[%clk 0:01:38.8]} 21... Rfd8 {[%clk 0:01:46]} 22. a3 {[%clk
0:01:35.1]} 22... Rd7 {[%clk 0:01:28.5]} 23. h5 {[%clk 0:01:35.8]} 23... Rcd8
{[%clk 0:01:28]} 24. Rh4 {[%clk 0:01:33.5]} 24... Qf6 {[%clk 0:01:28.8]} 25.
Rhh1 {[%clk 0:01:18.2]} 25... Kh8 {[%clk 0:01:25.8]} 26. Qe3 {[%clk 0:01:10.9]}
26... Bb5 {[%clk 0:01:21.1]} 27. Be2 {[%clk 0:01:08.9]} 27... Bc6 {[%clk
0:01:08.5]} 28. Rxd7 {[%clk 0:01:02]} 28... Rxd7 {[%clk 0:01:09]} 29. Rd1 {[%clk
0:01:03.9]} 29... Rxd1+ {[%clk 0:01:09.6]} 30. Bxd1 {[%clk 0:01:05.8]} 30... Qh4
{[%clk 0:01:06.1]} 31. g4 {[%clk 0:00:58.2]} 31... Qh1 {[%clk 0:01:04.4]} 32.
Qd3 {[%clk 0:00:51.2]} 32... e5 {[%clk 0:00:57.3]} 33. Qd8+ {[%clk 0:00:45.7]}
33... Kh7 {[%clk 0:00:57.8]} 34. Qd3+ {[%clk 0:00:45.8]} 34... e4 {[%clk
0:00:59]} 35. fxe4 {[%clk 0:00:41.4]} 35... Bxe4 {[%clk 0:00:59.7]} 36. Qd2
{[%clk 0:00:38.5]} 36... g6 {[%clk 0:00:43]} 37. Ka2 {[%clk 0:00:35.3]} 37...
Bd5+ {[%clk 0:00:32.7]} 38. b3 {[%clk 0:00:33.8]} 38... Be6 {[%clk 0:00:25.3]}
39. Qe2 {[%clk 0:00:26.1]} 39... Qd5 {[%clk 0:00:11.2]} 40. hxg6+ {[%clk
0:00:18.3]} 40... fxg6 {[%clk 0:00:12.4]} 41. Qf3 {[%clk 0:00:10.4]} 41... Kg7
{[%clk 0:00:12.3]} 42. a4 {[%clk 0:00:09.4]} 42... Qxf3 {[%clk 0:00:12.7]} 43.
Bxf3 {[%clk 0:00:11.2]} 43... b6 {[%clk 0:00:14.3]} 44. Ka3 {[%clk 0:00:11]}
44... a5 {[%clk 0:00:14.1]} 45. b4 {[%clk 0:00:12.1]} 45... Kf6 {[%clk
0:00:14.3]} 46. bxa5 {[%clk 0:00:09.5]} 46... bxa5 {[%clk 0:00:15.5]} 47. Kb2
{[%clk 0:00:10.1]} 47... Ke5 {[%clk 0:00:16.3]} 48. Kc3 {[%clk 0:00:11.4]} 48...
Bf7 {[%clk 0:00:14.8]} 49. Kd3 {[%clk 0:00:10.8]} 49... h5 {[%clk 0:00:15.9]}
50. gxh5 {[%clk 0:00:12]} 50... gxh5 {[%clk 0:00:16.8]} 51. Bxh5 {[%clk
0:00:06.3]} 51... Bxh5 {[%clk 0:00:16.9]} 52. Kc4 {[%clk 0:00:08.2]} 52... Be8
{[%clk 0:00:17.4]} 53. Kc5 {[%clk 0:00:09.1]} 53... Bxa4 {[%clk 0:00:17.4]} 54.
Kb6 {[%clk 0:00:10.8]} 54... Bxc2 {[%clk 0:00:18.7]} 55. Kxa5 {[%clk 0:00:12.7]}
1/2-1/2

[Event "*** Titled Tuesday 3|2 Blitz"]
[Site "Chess.com"]
[Date "2015.07.07"]
[Round "2"]
[White "wonderfultime"]
[Black "geeeeri"]
[Result "1-0"]
[WhiteElo "2571"]
[BlackElo "2315"]
[TimeControl "180+2"]
[EndTime "11:23:09 PDT"]
[Termination "wonderfultime won by resignation"]

1. d4 {[%clk 0:03:01.9]} 1... Nf6 {[%clk 0:02:59.6]} 2. c4 {[%clk 0:03:02.9]}
2... g6 {[%clk 0:02:59.6]} 3. Nc3 {[%clk 0:03:04.1]} 3... d6 {[%clk 0:03:00.5]}
4. e4 {[%clk 0:03:04.2]} 4... Bg7 {[%clk 0:03:02.4]} 5. f3 {[%clk 0:03:05.4]}
5... O-O {[%clk 0:03:03.2]} 6. Be3 {[%clk 0:03:06.7]} 6... c5 {[%clk 0:03:04.2]}
7. Nge2 {[%clk 0:03:07.3]} 7... Nc6 {[%clk 0:03:01.1]} 8. d5 {[%clk 0:03:08.3]}
8... Ne5 {[%clk 0:02:57.7]} 9. Ng3 {[%clk 0:03:09.4]} 9... a6 {[%clk 0:02:52.1]}
10. Be2 {[%clk 0:03:07.7]} 10... e6 {[%clk 0:02:52.7]} 11. a4 {[%clk 0:03:05.2]}
11... exd5 {[%clk 0:02:52.7]} 12. cxd5 {[%clk 0:03:07.1]} 12... h5 {[%clk
0:02:45.7]} 13. O-O {[%clk 0:03:07.9]} 13... h4 {[%clk 0:02:42]} 14. Nh1 {[%clk
0:03:09.2]} 14... Nh7 {[%clk 0:02:33.7]} 15. Qd2 {[%clk 0:03:10.1]} 15... f5
{[%clk 0:02:32.4]} 16. Nf2 {[%clk 0:03:11.7]} 16... Bd7 {[%clk 0:02:25.1]} 17.
Rab1 {[%clk 0:03:03.2]} 17... Qe7 {[%clk 0:02:23.7]} 18. b4 {[%clk 0:02:22]}
18... c4 {[%clk 0:02:15.5]} 19. a5 {[%clk 0:02:13]} 19... Rac8 {[%clk 0:02:04]}
20. Rfc1 {[%clk 0:02:12.6]} 20... Nf6 {[%clk 0:01:55]} 21. Bg5 {[%clk
0:01:55.2]} 21... h3 {[%clk 0:01:51.2]} 22. Nxh3 {[%clk 0:01:28.2]} 22... fxe4
{[%clk 0:01:41.3]} 23. fxe4 {[%clk 0:01:26.1]} 23... Bxh3 {[%clk 0:01:39.7]} 24.
gxh3 {[%clk 0:01:28]} 24... Nf7 {[%clk 0:01:35.3]} 25. Bg4 {[%clk 0:01:23.8]}
25... Qe5 {[%clk 0:01:20.4]} 26. Bf4 {[%clk 0:00:24.8]} 26... Nxe4 {[%clk
0:01:20.9]} 27. Bxe5 {[%clk 0:00:17.6]} 27... Nxd2 {[%clk 0:01:21.1]} 28. Bxg7
{[%clk 0:00:19.2]} 28... Nxb1 {[%clk 0:01:03.7]} 29. Bxf8 {[%clk 0:00:20]} 29...
Nxc3 {[%clk 0:00:50.9]} 30. Rxc3 {[%clk 0:00:12.3]} 30... Rxf8 {[%clk
0:00:52.8]} 31. Rxc4 {[%clk 0:00:13.8]} 31... Ne5 {[%clk 0:00:53.8]} 32. Rc7
{[%clk 0:00:15]} 32... Rb8 {[%clk 0:00:39.7]} 33. Be6+ {[%clk 0:00:15.6]} 33...
Kf8 {[%clk 0:00:39.5]} 34. Bc8 {[%clk 0:00:16.6]} 34... Nd3 {[%clk 0:00:35.2]}
35. Bxb7 {[%clk 0:00:15.8]} 35... Nxb4 {[%clk 0:00:35.6]} 36. Kf2 {[%clk
0:00:17.2]} 36... Re8 {[%clk 0:00:32]} 37. Kg3 {[%clk 0:00:12.9]} 37... Re4
{[%clk 0:00:29.7]} 38. Kf3 {[%clk 0:00:13]} 38... Re5 {[%clk 0:00:30.7]} 39. Rd7
{[%clk 0:00:11.3]} 39... Nxd5 {[%clk 0:00:25.9]} 40. Rxd6 {[%clk 0:00:12.6]}
40... Nc7 {[%clk 0:00:22.4]} 41. Rc6 {[%clk 0:00:13.1]} 41... Ne6 {[%clk
0:00:14.5]} 42. Rxa6 {[%clk 0:00:14.3]} 42... Nd4+ {[%clk 0:00:16.4]} 43. Kf4
{[%clk 0:00:15.3]} 43... Rf5+ {[%clk 0:00:16.6]} 44. Ke4 {[%clk 0:00:16.7]}
44... Nb5 {[%clk 0:00:16.5]} 45. Bc6 {[%clk 0:00:14.3]} 45... Nd6+ {[%clk
0:00:15.9]} 46. Kd4 {[%clk 0:00:14.5]} 46... Ke7 {[%clk 0:00:17.8]} 47. Ra7+
{[%clk 0:00:15.8]} 47... Kf6 {[%clk 0:00:19]} 48. a6 {[%clk 0:00:16.9]} 48...
Nb5+ {[%clk 0:00:17.6]} 49. Bxb5 {[%clk 0:00:17.5]} 49... Rxb5 {[%clk
0:00:19.5]} 50. Kc4 {[%clk 0:00:19.4]} 50... Ra5 {[%clk 0:00:21.4]} 51. Ra8
{[%clk 0:00:20.8]} 51... Ra1 {[%clk 0:00:23.3]} 52. Kb5 {[%clk 0:00:21.9]} 52...
Kg5 {[%clk 0:00:25.2]} 53. Rh8 {[%clk 0:00:21.9]} 53... Rb1+ {[%clk 0:00:25.6]}
54. Kc6 {[%clk 0:00:23.4]} 54... Rc1+ {[%clk 0:00:26.6]} 55. Kb7 {[%clk
0:00:24.8]} 55... Rb1+ {[%clk 0:00:26.9]} 56. Kc7 {[%clk 0:00:26.3]} 56... Rc1+
{[%clk 0:00:27.8]} 57. Kb8 {[%clk 0:00:27.8]} 57... Rb1+ {[%clk 0:00:28.9]} 58.
Ka8 {[%clk 0:00:29.3]} 58... Kf4 {[%clk 0:00:28.3]} 59. a7 {[%clk 0:00:30.2]}
59... g5 {[%clk 0:00:25.4]} 60. Rb8 {[%clk 0:00:31]} 60... Re1 {[%clk
0:00:21.1]} 61. Kb7 {[%clk 0:00:32.2]} 61... Re7+ {[%clk 0:00:21.3]} 62. Kb6
{[%clk 0:00:33.6]} 62... Re6+ {[%clk 0:00:22.1]} 63. Kc5 {[%clk 0:00:34.9]}
63... Re5+ {[%clk 0:00:23.1]} 64. Kd6 {[%clk 0:00:36.2]} 64... Ra5 {[%clk
0:00:19.4]} 65. a8=Q {[%clk 0:00:37.5]} 1-0

[Event "*** Titled Tuesday 3|2 Blitz"]
[Site "Chess.com"]
[Date "2015.07.07"]
[Round "2"]
[White "jlandaw"]
[Black "pedromartinez91"]
[Result "0-1"]
[WhiteElo "2325"]
[BlackElo "2150"]
[TimeControl "180+2"]
[EndTime "11:23:09 PDT"]
[Termination "pedromartinez91 won by resignation"]

1. e4 {[%clk 0:03:00.7]} 1... c5 {[%clk 0:02:59.9]} 2. Nc3 {[%clk 0:02:59.7]}
2... Nc6 {[%clk 0:03:00.7]} 3. g3 {[%clk 0:03:00.5]} 3... g6 {[%clk 0:03:00.8]}
4. Bg2 {[%clk 0:03:01.8]} 4... Bg7 {[%clk 0:03:01.5]} 5. d3 {[%clk 0:03:03.4]}
5... d6 {[%clk 0:03:01.8]} 6. f4 {[%clk 0:03:04.4]} 6... e5 {[%clk 0:03:02.1]}
7. Nh3 {[%clk 0:03:05.2]} 7... Nge7 {[%clk 0:03:01.6]} 8. O-O {[%clk 0:03:06.4]}
8... exf4 {[%clk 0:02:48]} 9. Nxf4 {[%clk 0:03:06.5]} 9... O-O {[%clk
0:02:47.5]} 10. a3 {[%clk 0:03:06.1]} 10... Ne5 {[%clk 0:02:45.8]} 11. Rb1
{[%clk 0:03:03.7]} 11... Bg4 {[%clk 0:02:39.7]} 12. Qd2 {[%clk 0:03:04.3]} 12...
N7c6 {[%clk 0:02:40.1]} 13. b4 {[%clk 0:03:02.4]} 13... Nd4 {[%clk 0:02:32.3]}
14. Kh1 {[%clk 0:02:45.4]} 14... b6 {[%clk 0:02:10.3]} 15. Ncd5 {[%clk
0:02:40.2]} 15... Bf3 {[%clk 0:01:57.8]} 16. Bb2 {[%clk 0:02:14.9]} 16... Bxg2+
{[%clk 0:01:56.8]} 17. Qxg2 {[%clk 0:02:16.8]} 17... Ne6 {[%clk 0:01:57.1]} 18.
Nxe6 {[%clk 0:01:57.9]} 18... fxe6 {[%clk 0:01:56.6]} 19. Nf4 {[%clk 0:01:59]}
19... Qd7 {[%clk 0:01:51.7]} 20. Rbd1 {[%clk 0:01:31.9]} 20... Rae8 {[%clk
0:01:40.8]} 21. c3 {[%clk 0:01:29.5]} 21... c4 {[%clk 0:01:39.4]} 22. d4 {[%clk
0:01:28.6]} 22... Ng4 {[%clk 0:01:38.4]} 23. Bc1 {[%clk 0:01:26.5]} 23... e5
{[%clk 0:01:36.4]} 24. h3 {[%clk 0:01:08.5]} 24... Nf6 {[%clk 0:01:09.2]} 25.
dxe5 {[%clk 0:00:38.1]} 25... Rxe5 {[%clk 0:01:06.7]} 26. Rd4 {[%clk 0:00:39.7]}
26... Qb7 {[%clk 0:00:43.8]} 27. Rxc4 {[%clk 0:00:32.4]} 27... Nxe4 {[%clk
0:00:38.7]} 28. Kh2 {[%clk 0:00:27.5]} 28... d5 {[%clk 0:00:34.2]} 29. Rd4
{[%clk 0:00:27.5]} 29... Nxc3 {[%clk 0:00:28.6]} 30. Rd3 {[%clk 0:00:21.8]}
30... Ne4 {[%clk 0:00:20.3]} 31. Re1 {[%clk 0:00:22.3]} 31... Rfe8 {[%clk
0:00:18.4]} 32. Nxd5 {[%clk 0:00:19.3]} 32... Rxd5 {[%clk 0:00:15]} 33. Rxe4
{[%clk 0:00:20.1]} 33... Rde5 {[%clk 0:00:09.8]} 34. Rxe5 {[%clk 0:00:18.9]}
34... Qxg2+ {[%clk 0:00:10.3]} 35. Kxg2 {[%clk 0:00:19.7]} 35... Rxe5 {[%clk
0:00:11.9]} 36. Rd7 {[%clk 0:00:20.9]} 36... Re2+ {[%clk 0:00:11.8]} 37. Kf3
{[%clk 0:00:22.4]} 37... Rc2 {[%clk 0:00:12.6]} 38. Be3 {[%clk 0:00:17.5]} 38...
Rc3 {[%clk 0:00:13.5]} 39. a4 {[%clk 0:00:17.8]} 39... a5 {[%clk 0:00:10.9]} 40.
bxa5 {[%clk 0:00:18.6]} 40... bxa5 {[%clk 0:00:11.8]} 41. Rd5 {[%clk 0:00:18]}
41... Ra3 {[%clk 0:00:09.4]} 42. Rd8+ {[%clk 0:00:18.7]} 42... Kf7 {[%clk
0:00:09.9]} 43. Rd7+ {[%clk 0:00:20.3]} 43... Kg8 {[%clk 0:00:10]} 44. Rd8+
{[%clk 0:00:21.4]} 44... Kf7 {[%clk 0:00:11.1]} 45. Rd7+ {[%clk 0:00:22.7]}
45... Kf8 {[%clk 0:00:12.5]} 46. Ra7 {[%clk 0:00:23.1]} 46... Bd4 {[%clk
0:00:11.1]} 47. Rxa5 {[%clk 0:00:21.4]} 47... Rxe3+ {[%clk 0:00:11.6]} 48. Kf4
{[%clk 0:00:22.8]} 48... Ra3 {[%clk 0:00:12.6]} 49. g4 {[%clk 0:00:24]} 49...
Bf6 {[%clk 0:00:12]} 50. h4 {[%clk 0:00:25.3]} 50... Bxh4 {[%clk 0:00:11.9]} 51.
Ra7 {[%clk 0:00:26.5]} 51... Be7 {[%clk 0:00:12.1]} 52. Ke5 {[%clk 0:00:26.1]}
52... Kf7 {[%clk 0:00:13.1]} 53. Kd5 {[%clk 0:00:26.8]} 53... h5 {[%clk
0:00:14]} 54. gxh5 {[%clk 0:00:27.7]} 54... gxh5 {[%clk 0:00:15.3]} 55. Kc4
{[%clk 0:00:28.4]} 55... h4 {[%clk 0:00:15.6]} 56. Kb5 {[%clk 0:00:29.8]} 56...
h3 {[%clk 0:00:16.8]} 57. Rd7 {[%clk 0:00:29.1]} 57... h2 {[%clk 0:00:13.8]} 58.
Rd1 {[%clk 0:00:29.9]} 58... Rb3+ {[%clk 0:00:14.3]} 59. Kc6 {[%clk 0:00:29.5]}
59... Rc3+ {[%clk 0:00:14.5]} 60. Kb7 {[%clk 0:00:28.9]} 60... Bc5 {[%clk
0:00:15.4]} 61. Rh1 {[%clk 0:00:22.7]} 61... Rb3+ {[%clk 0:00:15.7]} 62. Kc6
{[%clk 0:00:23.6]} 62... Bg1 {[%clk 0:00:16.3]} 63. a5 {[%clk 0:00:25.2]} 63...
Ke7 {[%clk 0:00:17.2]} 64. a6 {[%clk 0:00:22]} 64... Rb6+ {[%clk 0:00:14.5]} 0-1

[Event "*** Titled Tuesday 3|2 Blitz"]
[Site "Chess.com"]
[Date "2015.07.07"]
[Round "2"]
[White "Hikaru"]
[Black "Cryptochess"]
[Result "1-0"]
[WhiteElo "2834"]
[BlackElo "2367"]
[TimeControl "180+2"]
[EndTime "11:23:59 PDT"]
[Termination "Hikaru won by resignation"]

1. d4 {[%clk 0:03:01.9]} 1... Nf6 {[%clk 0:02:58.7]} 2. c4 {[%clk 0:03:03]} 2...
e6 {[%clk 0:02:59.7]} 3. e3 {[%clk 0:03:01.4]} 3... b6 {[%clk 0:02:58.3]} 4. Nc3
{[%clk 0:03:01.7]} 4... Bb7 {[%clk 0:02:59.6]} 5. Nf3 {[%clk 0:03:02.7]} 5...
Bb4 {[%clk 0:03:00.5]} 6. Bd2 {[%clk 0:03:02.7]} 6... O-O {[%clk 0:03:01.2]} 7.
Bd3 {[%clk 0:03:03.4]} 7... d6 {[%clk 0:03:01.3]} 8. Qc2 {[%clk 0:03:03.3]} 8...
Nbd7 {[%clk 0:03:02]} 9. a3 {[%clk 0:03:00.2]} 9... Bxc3 {[%clk 0:03:02.9]} 10.
Bxc3 {[%clk 0:03:02.1]} 10... c5 {[%clk 0:03:03.7]} 11. O-O {[%clk 0:02:58.2]}
11... Qe7 {[%clk 0:03:03.7]} 12. Qe2 {[%clk 0:02:52.1]} 12... Rac8 {[%clk
0:03:03.2]} 13. Rac1 {[%clk 0:02:53.4]} 13... e5 {[%clk 0:02:59.7]} 14. dxe5
{[%clk 0:02:44.5]} 14... Nxe5 {[%clk 0:02:56]} 15. Nxe5 {[%clk 0:02:44.2]} 15...
dxe5 {[%clk 0:02:56.4]} 16. Bc2 {[%clk 0:02:43.7]} 16... Ne4 {[%clk 0:02:52.1]}
17. Be1 {[%clk 0:02:44.3]} 17... f5 {[%clk 0:02:50]} 18. f3 {[%clk 0:02:45]}
18... Nf6 {[%clk 0:02:48.7]} 19. Bxf5 {[%clk 0:02:45.3]} 19... Rcd8 {[%clk
0:02:48.2]} 20. Bc2 {[%clk 0:02:46.4]} 20... e4 {[%clk 0:02:47.8]} 21. f4 {[%clk
0:02:47.4]} 21... Bc8 {[%clk 0:02:44.1]} 22. Bc3 {[%clk 0:02:47.3]} 22... Bf5
{[%clk 0:02:38.9]} 23. h3 {[%clk 0:02:48.2]} 23... h5 {[%clk 0:02:35.7]} 24.
Rcd1 {[%clk 0:02:47]} 24... h4 {[%clk 0:02:34.2]} 25. Rxd8 {[%clk 0:02:47.8]}
25... Rxd8 {[%clk 0:02:34.7]} 26. Rd1 {[%clk 0:02:49.7]} 26... Rxd1+ {[%clk
0:02:31.5]} 27. Qxd1 {[%clk 0:02:51.6]} 27... Qf7 {[%clk 0:02:32.6]} 28. Be1
{[%clk 0:02:50.3]} 28... Kh7 {[%clk 0:02:29.4]} 29. b3 {[%clk 0:02:47.1]} 29...
Qg6 {[%clk 0:02:25.3]} 30. Kh2 {[%clk 0:02:46.2]} 30... Qh6 {[%clk 0:02:23.3]}
31. Qb1 {[%clk 0:02:41.7]} 31... Qh5 {[%clk 0:02:17.3]} 32. Qd1 {[%clk
0:02:42.8]} 32... Qh6 {[%clk 0:02:15.6]} 33. Qe2 {[%clk 0:02:41.2]} 33... Nh5
{[%clk 0:02:08.7]} 34. Bd1 {[%clk 0:02:41.2]} 34... g6 {[%clk 0:02:00.4]} 35.
Qd2 {[%clk 0:02:38.8]} 35... g5 {[%clk 0:01:53.8]} 36. Qd5 {[%clk 0:02:34.3]}
36... Ng7 {[%clk 0:01:45]} 37. Bg4 {[%clk 0:02:30.5]} 37... Qg6 {[%clk
0:01:30.8]} 38. Bxf5 {[%clk 0:02:27]} 38... Nxf5 {[%clk 0:01:32.7]} 39. Qxe4
{[%clk 0:02:27]} 39... g4 {[%clk 0:01:34]} 40. hxg4 {[%clk 0:02:23]} 40... Qxg4
{[%clk 0:01:34.9]} 41. Bf2 {[%clk 0:02:16]} 41... Kg6 {[%clk 0:01:27.6]} 42.
Qe6+ {[%clk 0:02:09.5]} 42... Kh5 {[%clk 0:01:18.2]} 43. Qe8+ {[%clk 0:02:08.3]}
43... Kh6 {[%clk 0:01:11.2]} 44. Qe6+ {[%clk 0:02:00.5]} 44... Kh5 {[%clk
0:01:11.7]} 45. Qe5 {[%clk 0:02:02]} 45... Kg6 {[%clk 0:00:46.8]} 46. e4 {[%clk
0:02:01.7]} 46... Ng7 {[%clk 0:00:36.6]} 47. f5+ {[%clk 0:01:59.4]} 47... Kh7
{[%clk 0:00:37]} 48. f6 {[%clk 0:01:32.4]} 48... Ne6 {[%clk 0:00:25]} 49. b4
{[%clk 0:00:48.6]} 49... Kg6 {[%clk 0:00:15.1]} 50. bxc5 {[%clk 0:00:46]} 50...
bxc5 {[%clk 0:00:13.6]} 51. Qf5+ {[%clk 0:00:36]} 51... Qxf5 {[%clk 0:00:13.2]}
52. exf5+ {[%clk 0:00:37.9]} 52... Kxf5 {[%clk 0:00:14.9]} 53. f7 {[%clk
0:00:39.8]} 53... Kg6 {[%clk 0:00:15.1]} 54. Bxc5 {[%clk 0:00:41.3]} 54... Kxf7
{[%clk 0:00:13.5]} 55. Bxa7 {[%clk 0:00:42.5]} 55... Nf4 {[%clk 0:00:11.1]} 56.
Bf2 {[%clk 0:00:41.7]} 56... h3 {[%clk 0:00:09.2]} 57. gxh3 {[%clk 0:00:40]}
57... Ke6 {[%clk 0:00:10.7]} 58. Be3 {[%clk 0:00:38.4]} 58... Nd3 {[%clk
0:00:10.7]} 59. Bd4 {[%clk 0:00:31.3]} 59... Kf5 {[%clk 0:00:11.3]} 60. c5
{[%clk 0:00:30.8]} 60... Nf4 {[%clk 0:00:11.4]} 61. c6 {[%clk 0:00:31.6]} 61...
Nd5 {[%clk 0:00:12.8]} 62. h4 {[%clk 0:00:28.2]} 62... Ke6 {[%clk 0:00:12.1]}
63. h5 {[%clk 0:00:28.4]} 63... Ne7 {[%clk 0:00:12.6]} 64. h6 {[%clk 0:00:28]}
64... Ng6 {[%clk 0:00:13.7]} 65. c7 {[%clk 0:00:21.1]} 65... Kd7 {[%clk
0:00:14.8]} 66. Bb6 {[%clk 0:00:22.4]} 66... Ne5 {[%clk 0:00:14]} 67. h7 {[%clk
0:00:23]} 67... Nf7 {[%clk 0:00:15.2]} 68. a4 {[%clk 0:00:24.4]} 68... Kc8
{[%clk 0:00:16.4]} 69. a5 {[%clk 0:00:25.8]} 69... Kb7 {[%clk 0:00:18]} 70. Kg3
{[%clk 0:00:27.2]} 70... Kc8 {[%clk 0:00:14.4]} 71. Kf4 {[%clk 0:00:27.3]} 71...
Kb7 {[%clk 0:00:13.9]} 72. a6+ {[%clk 0:00:28.3]} 1-0

[Event "*** Titled Tuesday 3|2 Blitz"]
[Site "Chess.com"]
[Date "2015.07.07"]
[Round "2"]
[White "penguingm1"]
[Black "chessloveyou"]
[Result "1/2-1/2"]
[WhiteElo "2511"]
[BlackElo "1979"]
[TimeControl "180+2"]
[EndTime "11:24:18 PDT"]
[Termination "Game drawn by agreement"]

1. d4 {[%clk 0:03:01.9]} 1... f5 {[%clk 0:02:56.7]} 2. Nf3 {[%clk 0:03:01.9]}
2... Nf6 {[%clk 0:02:56.8]} 3. c4 {[%clk 0:02:46.8]} 3... e6 {[%clk 0:02:55.6]}
4. g3 {[%clk 0:02:44.6]} 4... b6 {[%clk 0:02:56.1]} 5. Bg2 {[%clk 0:02:40.2]}
5... Bb7 {[%clk 0:02:56.6]} 6. O-O {[%clk 0:02:34.7]} 6... Be7 {[%clk
0:02:56.4]} 7. d5 {[%clk 0:02:33.9]} 7... exd5 {[%clk 0:02:55.2]} 8. Nd4 {[%clk
0:02:34.4]} 8... c6 {[%clk 0:02:32.2]} 9. cxd5 {[%clk 0:02:16.5]} 9... Nxd5
{[%clk 0:02:30.7]} 10. Nxf5 {[%clk 0:02:14.2]} 10... O-O {[%clk 0:02:27.9]} 11.
e4 {[%clk 0:02:12.6]} 11... Nf6 {[%clk 0:02:24]} 12. e5 {[%clk 0:02:13.8]} 12...
Ne8 {[%clk 0:02:13.2]} 13. Qg4 {[%clk 0:02:10.6]} 13... d5 {[%clk 0:01:52.8]}
14. exd6 {[%clk 0:02:08.5]} 14... Bf6 {[%clk 0:01:50.9]} 15. Rd1 {[%clk
0:01:55]} 15... Bc8 {[%clk 0:01:48]} 16. Qe4 {[%clk 0:01:28.1]} 16... Bxf5
{[%clk 0:01:29.6]} 17. Qxf5 {[%clk 0:01:28.6]} 17... Qd7 {[%clk 0:01:20.8]} 18.
Qxd7 {[%clk 0:01:20.2]} 18... Nxd7 {[%clk 0:01:22.7]} 19. Bxc6 {[%clk
0:01:21.2]} 19... Rd8 {[%clk 0:01:23.4]} 20. Nc3 {[%clk 0:01:21.7]} 20... Nc5
{[%clk 0:01:18.6]} 21. Bf4 {[%clk 0:01:09]} 21... g5 {[%clk 0:01:13]} 22. d7
{[%clk 0:01:08.5]} 22... Nxd7 {[%clk 0:01:01.8]} 23. Bxg5 {[%clk 0:00:58]} 23...
Bxg5 {[%clk 0:00:58.9]} 24. Rxd7 {[%clk 0:00:58.8]} 24... Rxd7 {[%clk
0:00:58.3]} 25. Bxd7 {[%clk 0:00:59.3]} 25... Nf6 {[%clk 0:00:58.4]} 26. Be6+
{[%clk 0:01:00.3]} 26... Kg7 {[%clk 0:00:58.9]} 27. f4 {[%clk 0:01:01.8]} 27...
Bh6 {[%clk 0:00:59]} 28. Rd1 {[%clk 0:01:03]} 28... Re8 {[%clk 0:00:59.3]} 29.
Bc4 {[%clk 0:01:03.8]} 29... Re7 {[%clk 0:00:54.7]} 30. Nd5 {[%clk 0:01:04.7]}
30... Nxd5 {[%clk 0:00:55.2]} 31. Rxd5 {[%clk 0:01:06.6]} 31... Rc7 {[%clk
0:00:51.4]} 32. b3 {[%clk 0:01:06.1]} 32... Kf8 {[%clk 0:00:47.5]} 33. Rf5+
{[%clk 0:00:52.8]} 33... Kg7 {[%clk 0:00:38.3]} 34. Kg2 {[%clk 0:00:51.3]} 34...
Kg6 {[%clk 0:00:32.2]} 35. Re5 {[%clk 0:00:52.2]} 35... Bg7 {[%clk 0:00:30.8]}
36. Re6+ {[%clk 0:00:53.2]} 36... Kf5 {[%clk 0:00:28.4]} 37. Kf3 {[%clk
0:00:53.7]} 37... Rxc4 {[%clk 0:00:25]} 38. Re7 {[%clk 0:00:48.1]} 38... Rc3+
{[%clk 0:00:22.6]} 39. Kg2 {[%clk 0:00:48.8]} 39... Kg6 {[%clk 0:00:22.5]} 40.
Rxa7 {[%clk 0:00:49.8]} 40... Bd4 {[%clk 0:00:21.2]} 41. g4 {[%clk 0:00:48.1]}
41... Be3 {[%clk 0:00:20.6]} 42. Kf3 {[%clk 0:00:45.9]} 42... Bg1+ {[%clk
0:00:18.8]} 43. Ke4 {[%clk 0:00:45.8]} 43... Bxh2 {[%clk 0:00:19.2]} 44. f5+
{[%clk 0:00:42.8]} 44... Kh6 {[%clk 0:00:19.8]} 45. f6 {[%clk 0:00:43]} 45...
Rc6 {[%clk 0:00:20.4]} 46. Kf5 {[%clk 0:00:42.2]} 46... Rc5+ {[%clk 0:00:19.7]}
47. Ke6 {[%clk 0:00:42.5]} 47... Re5+ {[%clk 0:00:20.7]} 48. Kf7 {[%clk
0:00:39.9]} 48... Kg5 {[%clk 0:00:20.1]} 49. Kg7 {[%clk 0:00:41]} 49... Re1
{[%clk 0:00:20.3]} 50. f7 {[%clk 0:00:41.4]} 50... Bd6 {[%clk 0:00:21.9]} 51.
f8=Q {[%clk 0:00:40.8]} 51... Bxf8+ {[%clk 0:00:22.6]} 52. Kxf8 {[%clk
0:00:42.7]} 52... Kxg4 {[%clk 0:00:24.1]} 53. Rxh7 {[%clk 0:00:44.3]} 53... Re2
{[%clk 0:00:22.8]} 54. Rh6 {[%clk 0:00:39.4]} 54... Rxa2 {[%clk 0:00:23.2]} 55.
Rxb6 {[%clk 0:00:40.8]} 55... Re2 {[%clk 0:00:23.8]} 56. Kf7 {[%clk 0:00:39.2]}
56... Kf4 {[%clk 0:00:24.9]} 57. Rf6+ {[%clk 0:00:35.5]} 57... Kg4 {[%clk
0:00:23.4]} 58. b4 {[%clk 0:00:34.9]} 58... Rb2 {[%clk 0:00:24.4]} 59. Rb6
{[%clk 0:00:35.4]} 59... Kf5 {[%clk 0:00:25.2]} 60. Ke7 {[%clk 0:00:36.6]} 60...
Ke5 {[%clk 0:00:26.4]} 61. Kd7 {[%clk 0:00:37.9]} 61... Kd5 {[%clk 0:00:27.7]}
62. b5 {[%clk 0:00:29.8]} 62... Kc5 {[%clk 0:00:28.8]} 63. Rc6+ {[%clk
0:00:26.7]} 63... Kxb5 {[%clk 0:00:27.5]} 64. Kc7 {[%clk 0:00:28.1]} 64... Rb4
{[%clk 0:00:28.1]} 65. Rb6+ {[%clk 0:00:28.6]} 65... Kc5 {[%clk 0:00:29.4]} 66.
Rh6 {[%clk 0:00:29.6]} 66... Rg4 {[%clk 0:00:26.4]} 67. Rh5+ {[%clk 0:00:29.6]}
67... Kc4 {[%clk 0:00:27.5]} 68. Kd6 {[%clk 0:00:28.2]} 68... Rd4+ {[%clk
0:00:26.2]} 1/2-1/2